[Event "Aktobe Open 2022"]
[Site "Aktobe"]
[Date "2022.06.18"]
[Round "6.2"]
[White "Sivuk, Vitaly"]
[Black "Agmanov, Zhandos"]
[Result "0-1"]
[ECO "E06"]
[WhiteElo "2529"]
[BlackElo "2420"]
[Annotator "TA"]
[PlyCount "196"]
[EventDate "2022.06.14"]
[EventType "swiss"]
[EventCountry "KAZ"]
[SourceTitle "playchess.com"]
[Source "ChessBase"]
[SourceQuality "1"]
[TimeControl "5400+30"]

{[%evp 13,196,19,16,11,36,23,20,16,20,23,13,18,9,0,0,0,0,-14,-20,-25,0,-16,-15,-20,0,0,0,0,0,0,0,0,0,0,0,0,46,29,28,29,29,35,59,28,28,28,28,22,27,22,25,12,12,12,12,0,2,0,0,0,0,-20,-31,-49,-45,-41,-14,-16,-18,-88,-77,-94,-94,-94,-77,-68,-45,-45,-45,-45,-37,-61,-61,-61,-61,-61,-61,-52,-45,-61,-61,-66,-66,-168,-172,-172,-173,-173,-173,-173,-173,-173,-173,-173,-173,-173,-173,-173,-94,-94,-94,-94,-94,-94,-94,-94,-94,-95,-95,-95,-95,-140,-140,-140,-140,-140,-140,-140,-140,-199,-140,-212,-203,-248,-187,-879,-591,-945,-943,-914,-954,-892,-919,-884,-790,-947,-922,-946,-953,-917,-456,-456,-456,-448,-448,-448,-448,-1048,-1120,-1130,-1158,-1185,-1164,-1120,-1120,-847,-680,-2779,-2537,-2143,-3023,-29978,-29979,-29980,-29981,-29981,-1357,-29982,-29983,-29983,-29984,-29984,-29984,-29984,-29984]} 1. d4 {[%emt 0:00:05]} Nf6 {[%emt 0:00:35]} 2. c4 {[%emt 0:00:11]} e6 {[%emt 0:00:06]} 3. g3 {[%emt 0:00:09]} d5 {[%emt 0:01:05]} 4. Bg2 {[%emt 0:00:12]} Be7 {[%emt 0:00:22]} 5. Nf3 {[%emt 0:00:33]} O-O {[%emt 0:00:10]} 6. O-O {[%emt 0:02:17]} c6 {[%emt 0:01:06]} 7. Nbd2 {[%emt 0:01:23]} b6 {[%emt 0:01:05]} 8. b3 {[%emt 0:01:01] E06: Closed Catalan: Early deviations.} c5 {[%emt 0:05:31]} 9. Bb2 {[%emt 0:01:49] [#]} Nc6 $146 {[%emt 0:10:42]} ({Predecessor:} 9... Bb7 10. Ne5 Nc6 11. cxd5 exd5 12. Ndf3 Nxe5 13. Nxe5 Ne4 14. Rc1 Rc8 15. Kh1 f6 {½-½ (42) Watson,J (1696)-Spencer,D (2022) England 2016}) 10. cxd5 {[%emt 0:05:24] The position is equal.} exd5 {[%emt 0:01:21]} 11. Rc1 {[%emt 0:09:30]} Re8 {[%emt 0:03:51]} 12. Ne5 {[%emt 0:08:49]} Nxd4 {[%emt 0:03:00]} 13. Bxd4 {[%emt 0:01:41]} cxd4 {[%emt 0:00:06]} 14. Nc6 {[%emt 0:00:19][%csl LRd4,LRd8]} Qd7 {[%emt 0:04:44]} 15. Nf3 {[%emt 0:03:26]} Ba3 {[%emt 0:05:49]} 16. Rc2 {[%emt 0:00:13]} Bb7 {[%emt 0:01:49] This bishop pair is nice.} 17. Ncxd4 {[%emt 0:04:03]} Ne4 {[%emt 0:05:52]} 18. Qd3 {[%emt 0:03:06]} a6 {[%emt 0:02:24]} 19. Rb1 {[%emt 0:01:25]} Bf8 {[%emt 0:02:34]} 20. Rbc1 {[%emt 0:01:05]} Rac8 {[%emt 0:00:30] Inhibits Rc7.} 21. e3 {[%emt 0:02:54]} Ba3 {[%emt 0:03:13]} 22. Rxc8 {[%emt 0:00:23]} Rxc8 {[%emt 0:00:04]} 23. Rc2 {[%emt 0:00:09]} Bd6 {[%emt 0:01:55]} 24. Nd2 {[%emt 0:03:38][%cal Rd2e4]} Nxd2 {[%emt 0:05:20]} (24... Nf6 $11) 25. Rxd2 {[%emt 0:03:12]} Rc1+ {[%emt 0:01:07]} 26. Rd1 {[%emt 0:00:32]} Rxd1+ {[%emt 0:00:09]} 27. Qxd1 {[%emt 0:00:02]} g6 {[%emt 0:02:58]} 28. Qd3 {[%emt 0:00:35]} Be5 {[%emt 0:01:37]} 29. Ne2 {[%emt 0:01:20]} Qd6 {[%emt 0:00:45]} 30. h4 {[%emt 0:01:20][%cal Bh2h4,Bh4h5][%mdl 32]} Kg7 {[%emt 0:06:08]} 31. a4 {[%emt 0:02:30]} Qc5 {[%emt 0:01:12]} 32. h5 {[%emt 0:01:10]} a5 {[%emt 0:02:57]} 33. Kh2 {[%emt 0:00:51]} Bc6 {[%emt 0:00:43]} 34. f4 {[%emt 0:01:31]} Bf6 {[%emt 0:04:55]} 35. g4 {[%emt 0:04:07]} h6 {[%emt 0:01:37] Against g5} 36. hxg6 {[%emt 0:02:47]} fxg6 {[%emt 0:00:29]} 37. Ng3 {[%emt 0:00:21]} Qc3 {[%emt 0:02:48]} 38. Qxc3 {[%emt 0:03:22]} Bxc3 $15 {[%emt 0:00:05][%mdl 4096] Endgame KBB-KBN} 39. Kg1 {[%emt 0:00:17]} Bb4 {[%emt 0:04:59]} (39... Bd7 $5 {[%cal Rd5d4]} 40. Bxd5 Bxg4 $15) 40. Kf2 {[%emt 0:00:55]} Bc5 {[%emt 0:01:48]} 41. f5 {[%emt 0:04:52]} (41. Bf3 $11 {remains equal.}) 41... Kf6 {[%emt 0:01:24]} 42. Bf3 {[%emt 0:01:11]} gxf5 $1 {[%emt 0:01:55]} 43. Nxf5 {[%emt 0:02:00]} h5 {[%emt 0:00:15] White must now prevent ...hxg4.} 44. Ng3 {[%emt 0:02:50]} hxg4 {[%emt 0:00:48]} (44... h4 $5 {[%cal Rh4g3]} 45. Nf5 Kg5 $17) 45. Bxg4 {[%emt 0:00:05]} Ke5 {[%emt 0:02:03]} 46. Ke2 $1 {[%emt 0:01:18]} Be8 {[%emt 0:02:18]} 47. Bf5 {[%emt 0:04:27]} Bf7 {[%emt 0:00:43]} 48. Bc2 {[%emt 0:02:50]} Be6 {[%emt 0:01:26]} 49. Kd2 {[%emt 0:01:22]} Bb4+ {[%emt 0:00:07]} 50. Kc1 {[%emt 0:00:19]} Bg4 {[%emt 0:00:13]} 51. Bd3 {[%emt 0:00:34]} d4 {[%emt 0:01:57]} 52. exd4+ {[%emt 0:00:54]} Kxd4 {[%emt 0:00:15]} 53. Bc4 {[%emt 0:00:25]} (53. Bh7 $15) 53... Be1 $1 $19 {[%emt 0:01:08]} 54. Ne2+ {[%emt 0:02:43]} Ke3 {[%emt 0:00:05]} 55. Kd1 {[%emt 0:00:08]} Bd2 {[%emt 0:00:55]} 56. Bb5 {[%emt 0:00:13]} Bh5 {[%emt 0:00:06]} 57. Bc4 {[%emt 0:00:28]} Bf3 {[%emt 0:00:22]} 58. Bb5 {[%emt 0:00:10]} Bb4 {[%emt 0:02:20]} 59. Bc4 {[%emt 0:00:11]} Ba3 {[%emt 0:00:17]} 60. Bb5 {[%emt 0:00:21]} Bd5 {[%emt 0:00:35]} (60... Bd6 $19 61. Ba6 Be7) 61. Nc1 $17 {[%emt 0:02:19]} Be4 {[%emt 0:00:04]} 62. Bc4 {[%emt 0:00:51]} Bb2 {[%emt 0:00:40]} 63. Ne2 {[%emt 0:00:22]} Be5 {[%emt 0:00:30] Strongly threatening ...Bd3.} 64. Nc1 {[%emt 0:00:44] Inhibits Bd3.} Bf5 {[%emt 0:00:27] Black is more active.} 65. Bb5 {[%emt 0:00:34]} Kd4 {[%emt 0:00:28] Threatens to win with ...Kc3.} 66. Ne2+ {[%emt 0:00:57]} Kc5 $1 {[%emt 0:00:06]} 67. Bc4 {[%emt 0:00:22] [#]} Kb4 $1 {[%emt 0:00:14]} 68. Kd2 {[%emt 0:00:48]} Bg7 {[%emt 0:01:09]} 69. Bf7 {[%emt 0:01:15]} Bh6+ {[%emt 0:00:11]} 70. Kd1 {[%emt 0:00:21]} Be3 {[%emt 0:00:28] Inhibits Nd4.} 71. Bc4 {[%emt 0:01:29] Against Bd3} Bg6 {[%emt 0:00:34]} 72. Bd5 {[%emt 0:04:19]} (72. Be6 $17 {is the only way for White.}) 72... Bd3 {[%emt 0:00:32]} 73. Be6 {[%emt 0:00:42]} Ka3 {[%emt 0:00:42] Hoping for ...Kb2.} 74. Nc1 $2 {[%emt 0:00:45]} (74. Nc3) 74... Bg6 $19 {[%emt 0:01:26]} 75. Bc4 {[%emt 0:01:06] [#]} Kb2 $1 {[%emt 0:00:13]} 76. Nd3+ {[%emt 0:00:08]} Kc3 {[%emt 0:00:03]} 77. Ke2 {[%emt 0:00:26]} Bg5 {[%emt 0:01:34]} 78. Ne1 {[%emt 0:02:19]} Bb1 {[%emt 0:00:13]} 79. Nf3 {[%emt 0:02:50]} Bf4 {[%emt 0:00:05]} 80. Ne1 {[%emt 0:00:32]} Ba2 {[%emt 0:01:20]} 81. Nd3 {[%emt 0:00:23]} Bc7 {[%emt 0:02:00]} (81... Bh6 $142 82. Ne5 Bg7) 82. Nc1 {[%emt 0:00:33]} Bb1 {[%emt 0:00:01]} 83. Ke3 {[%emt 0:00:15]} Be5 {[%emt 0:01:22]} 84. Ne2+ {[%emt 0:00:14]} Kb2 {[%emt 0:00:06] ...Bc2 is the strong threat.} 85. Ng1 {[%emt 0:01:19]} (85. Nd4 $142 Ba2 86. Nc6) 85... Bc2 {[%emt 0:00:22]} 86. Nf3 {[%emt 0:00:06]} Bc3 {[%emt 0:00:05]} 87. Ng5 {[%emt 0:01:04]} Bxb3 {[%emt 0:00:09]} 88. Bb5 {[%emt 0:00:10]} Ka3 {[%emt 0:00:24]} 89. Kd3 {[%emt 0:01:05]} Bb4 {[%emt 0:00:08]} 90. Nf3 {[%emt 0:00:32]} Bxa4 {[%emt 0:00:10]} 91. Ba6 {[%emt 0:00:24]} Kb2 {[%emt 0:00:43]} 92. Kc4 {[%emt 0:00:37]} Bd1 {[%emt 0:00:42]} 93. Nd4 {[%emt 0:00:25]} Bc5 {[%emt 0:00:14]} 94. Nb5 {[%emt 0:00:24]} Be2+ {[%emt 0:00:07]} 95. Kd5 {[%emt 0:00:05]} a4 {[%emt 0:00:32][%cal Ba5a4,Ba4a3][%mdl 32] Black mates.} 96. Nc3 {[%emt 0:00:21]} Kxc3 {[%emt 0:00:09]} 97. Bxe2 {[%emt 0:00:05]} a3 {[%emt 0:00:03]} 98. Bc4 {[%emt 0:00:05]} Kb2 {[%emt 0:04:31] Weighted Error Value: White=0.08 (flawless) /Black=0.06 (flawless)} 0-1

[Event "Aktobe Open 2022"]
[Site "Aktobe"]
[Date "2022.06.18"]
[Round "6.3"]
[White "Volkov, Sergey"]
[Black "Nesterov, Arseniy"]
[Result "1/2-1/2"]
[ECO "D41"]
[WhiteElo "2510"]
[BlackElo "2569"]
[Annotator "TA"]
[PlyCount "212"]
[EventDate "2022.06.14"]
[EventType "swiss"]
[EventCountry "KAZ"]
[SourceTitle "playchess.com"]
[Source "ChessBase"]
[SourceQuality "1"]
[TimeControl "5400+30"]

{[%evp 29,212,-10,-10,-46,0,0,0,0,0,0,0,0,0,0,15,10,10,7,22,18,47,0,0,0,0,0,21,20,17,16,18,16,18,17,54,54,54,56,60,26,26,30,30,17,102,102,102,39,39,37,83,37,97,53,97,0,97,53,53,59,59,59,59,59,97,97,97,53,53,53,117,117,117,117,117,117,117,117,117,117,117,117,117,117,117,117,117,117,117,117,117,117,117,117,117,117,117,117,117,26,26,26,26,20,20,20,97,97,97,97,97,97,97,97,97,97,97,97,97,97,97,36,36,36,97,97,97,97,97,97,97,97,97,97,97,97,97,63,97,97,97,63,97,97,97,97,97,97,97,97,97,97,97,97,97,0,97,97,97,97,97,0,97,97,97,97,26,26,97,97,97,14,14,0,0,0,0,0,0,0,0,0,0,0,0]} 1. d4 {[%emt 0:00:05]} d5 {[%emt 0:00:05]} 2. c4 {[%emt 0:00:05]} e6 {[%emt 0:00:03]} 3. Nc3 {[%emt 0:00:07]} Nf6 {[%emt 0:00:03]} 4. cxd5 {[%emt 0:00:13]} Nxd5 {[%emt 0:00:04]} 5. e4 {[%emt 0:00:20]} Nxc3 {[%emt 0:00:05]} 6. bxc3 {[%emt 0:00:13]} c5 {[%emt 0:00:06]} 7. Nf3 {[%emt 0:01:00]} cxd4 {[%emt 0:00:08]} 8. cxd4 {[%emt 0:00:04]} Bb4+ {[%emt 0:00:04]} 9. Bd2 {[%emt 0:00:07]} Bxd2+ {[%emt 0:00:04]} 10. Qxd2 {[%emt 0:00:06]} O-O {[%emt 0:00:09]} 11. Rd1 {[%emt 0:01:17]} b6 {[%emt 0:01:46]} 12. Bd3 {[%emt 0:02:38]} Bb7 {[%emt 0:00:11]} 13. O-O {[%emt 0:00:15]} Nd7 {[%emt 0:01:10]} 14. Qf4 {[%emt 0:04:07]} Rc8 {[%emt 0:08:42]} 15. e5 {[%emt 0:06:12]} h6 {[%emt 0:01:34]} 16. Nd2 {[%emt 0:00:55] [#]} Qg5 {[%emt 0:03:11]} (16... Nc5 $1 $15 17. Bc2 Qd5) 17. Qxg5 $11 {[%emt 0:07:07]} hxg5 {[%emt 0:00:04]} 18. Nc4 {[%emt 0:05:35]} Ba6 {[%emt 0:23:44]} 19. Nxb6 {[%emt 0:13:28]} Nxb6 {[%emt 0:05:09]} (19... Bxd3 20. Nxc8 (20. Nxd7 $2 Bxf1 21. Nxf8 Be2 $19) 20... Bxf1 21. Ne7+ Kh7 22. Kxf1 $16 (22. Rxf1 Re8 $14)) 20. Bxa6 {[%emt 0:00:07]} Rc2 {[%emt 0:00:04]} 21. a3 {[%emt 0:00:14]} Rc3 {[%emt 0:09:19]} 22. Ra1 {[%emt 0:08:53]} Rd8 {[%emt 0:02:08]} 23. Rfd1 {[%emt 0:00:37]} Rd5 {[%emt 0:00:41]} 24. a4 {[%emt 0:00:16]} Nc4 {[%emt 0:19:31]} 25. Bb7 {[%emt 0:09:52]} (25. h3 $14) 25... Ra5 $11 {[%emt 0:02:37]} 26. Rdb1 {[%emt 0:01:59]} Nb6 {[%emt 0:04:45]} 27. Rb4 {[%emt 0:00:47]} Rxa4 {[%emt 0:00:59]} 28. Rbxa4 {[%emt 0:00:13]} Nxa4 {[%emt 0:00:03]} 29. h4 {[%emt 0:05:02]} Rc4 {[%emt 0:01:58]} 30. hxg5 {[%emt 0:05:46]} Rxd4 {[%emt 0:00:18]} 31. Bc6 {[%emt 0:01:33]} Nb6 {[%emt 0:00:15]} 32. Rxa7 {[%emt 0:06:17]} Nc4 {[%emt 0:00:25]} 33. f4 {[%emt 0:01:23]} Rxf4 {[%emt 0:05:55]} 34. Ra4 {[%emt 0:01:09]} Nxe5 {[%emt 0:01:28]} 35. Rxf4 {[%emt 0:00:22]} Nxc6 {[%emt 0:00:03]} 36. g6 {[%emt 0:00:50]} fxg6 {[%emt 0:00:22]} (36... f5 $11) 37. Kf2 $16 {[%emt 0:00:30]} Ne7 {[%emt 0:00:12]} 38. Ke2 {[%emt 0:01:41]} (38. Kg3 $16) 38... Nd5 $14 {[%emt 0:00:13]} 39. Rf2 {[%emt 0:00:27]} Nf6 {[%emt 0:00:09]} (39... g5 $14) 40. Kd3 {[%emt 0:00:11]} (40. Kf3 $1 $16) 40... e5 {[%emt 0:02:49]} (40... Kf7 $14) 41. Ra2 {[%emt 0:00:09]} Nd5 {[%emt 0:03:51]} 42. Rf2 {[%emt 0:04:27]} Nf6 {[%emt 0:00:06]} 43. Rb2 {[%emt 0:00:07]} Kh7 {[%emt 0:02:18]} 44. Rb5 {[%emt 0:01:50]} Ng4 $1 {[%emt 0:00:55]} 45. Ke4 {[%emt 0:01:41]} Kh6 {[%emt 0:00:39]} 46. Rb7 {[%emt 0:00:50]} g5 {[%emt 0:01:27]} 47. Re7 {[%emt 0:02:38]} Kg6 {[%emt 0:00:37]} 48. Re6+ {[%emt 0:00:09]} Kh5 {[%emt 0:01:38]} 49. Kf3 {[%emt 0:01:11]} Nh2+ {[%emt 0:01:28]} ({Black should try} 49... Kh4 $14) 50. Kg3 $16 {[%emt 0:00:34]} Nf1+ {[%emt 0:00:27]} 51. Kf2 {[%emt 0:01:45]} Nh2 {[%emt 0:00:02]} 52. Re8 {[%emt 0:03:58]} Ng4+ {[%emt 0:00:12]} 53. Kg3 {[%emt 0:00:21]} Nf6 {[%emt 0:00:16]} 54. Rxe5 {[%emt 0:00:12]} Kg6 {[%emt 0:00:13]} 55. Kf3 {[%emt 0:00:14]} Kh6 {[%emt 0:00:25]} 56. Ra5 {[%emt 0:00:18]} Kg6 {[%emt 0:00:04]} 57. Ra7 {[%emt 0:00:25]} Kh6 {[%emt 0:00:50]} 58. Ke3 {[%emt 0:00:11]} Kg6 {[%emt 0:00:30]} 59. Kd4 {[%emt 0:00:11]} Kh6 {[%emt 0:01:12]} 60. Ke5 {[%emt 0:00:18]} Ng4+ {[%emt 0:00:29]} 61. Ke4 {[%emt 0:00:07]} Kg6 {[%emt 0:00:14]} 62. Ra6+ {[%emt 0:00:38]} Kh5 {[%emt 0:00:20]} 63. Re6 {[%emt 0:01:14]} Nf6+ {[%emt 0:01:08]} 64. Kf5 {[%emt 0:00:26]} (64. Kf3 $16) 64... Ng4 $11 {[%emt 0:00:11]} 65. Re7 {[%emt 0:00:43]} Nh6+ {[%emt 0:00:10]} 66. Ke4 {[%emt 0:01:23]} Kg4 $1 {[%emt 0:01:39]} 67. Re5 {[%emt 0:00:45]} g6 {[%emt 0:01:01]} (67... Nf7 $11 68. Rd5 g6) 68. Ke3 $16 {[%emt 0:00:17]} Nf5+ {[%emt 0:00:06]} 69. Kf2 {[%emt 0:00:10]} Kh5 {[%emt 0:00:06]} 70. Re8 {[%emt 0:02:38]} g4 {[%emt 0:00:05]} 71. Ra8 {[%emt 0:00:43]} Kg5 {[%emt 0:00:06]} 72. Ra3 {[%emt 0:00:09]} Kh4 {[%emt 0:01:32]} 73. Ke2 {[%emt 0:00:40]} Kg5 {[%emt 0:00:40]} 74. Ra6 {[%emt 0:01:17]} Kf4 {[%emt 0:00:50]} 75. Ra4+ {[%emt 0:00:43]} ({Of course not} 75. Rxg6 $6 Kg3 $11) (75. Kf1 $16) 75... Kg3 $14 {[%emt 0:00:52]} 76. Kf1 {[%emt 0:00:08]} Kh4 {[%emt 0:00:37]} ({Resist} 76... Ne3+ 77. Kg1 $16) (76... Kh2 $1 $14) 77. Kf2 $16 {[%emt 0:00:16]} Kg5 {[%emt 0:00:08]} 78. Ra6 {[%emt 0:00:19]} Kh5 {[%emt 0:00:15]} 79. Ke2 {[%emt 0:00:26]} Kg5 {[%emt 0:00:14]} 80. Rb6 {[%emt 0:01:12]} Kf4 {[%emt 0:00:38]} 81. Kf1 {[%emt 0:00:35]} ({Much weaker is} 81. Rxg6 $6 Kg3 $11) 81... Kg5 {[%emt 0:00:08]} 82. Kf2 {[%emt 0:00:10]} Kh5 {[%emt 0:00:07]} 83. Rb3 {[%emt 0:00:20]} Kg5 {[%emt 0:00:07]} 84. Rd3 {[%emt 0:00:31]} Kf4 {[%emt 0:00:08]} 85. Ke2 {[%emt 0:00:22]} Kg5 {[%emt 0:00:18]} 86. g3 {[%emt 0:01:18]} Ng7 {[%emt 0:00:58]} 87. Ke3 {[%emt 0:00:13]} Nh5 {[%emt 0:00:12]} 88. Rd5+ {[%emt 0:00:45]} Kf6 {[%emt 0:00:13]} 89. Kf2 {[%emt 0:00:17]} Ng7 {[%emt 0:00:04]} 90. Rd4 {[%emt 0:01:13]} Kg5 {[%emt 0:00:08]} 91. Rd3 {[%emt 0:00:11]} Nh5 {[%emt 0:00:11]} 92. Ke2 {[%emt 0:00:12]} (92. Ra3 $16) 92... Kf5 {[%emt 0:00:04]} (92... Ng7 $1 $11) 93. Re3 {[%emt 0:00:08]} Kg5 {[%emt 0:00:37]} 94. Kd3 {[%emt 0:00:05]} Kf5 {[%emt 0:00:21] [#]} 95. Kd4 {[%emt 0:00:06]} ({White should play} 95. Kd2 $1 $16) 95... Kf6 {[%emt 0:00:08]} (95... Nxg3 $1 $11 96. Rxg3 Kf4) 96. Ke4 $16 {[%emt 0:00:13]} Ke6 {[%emt 0:00:08]} 97. Rb3 {[%emt 0:00:29]} Kf6 {[%emt 0:00:06]} 98. Ra3 {[%emt 0:00:10]} Kg5 {[%emt 0:00:47] [#]} (98... Ke6 $1 $11 {keeps the balance.}) 99. Ke5 $1 $16 {[%emt 0:00:07]} Ng7 {[%emt 0:00:14]} 100. Ra5 {[%emt 0:00:14]} (100. Ra1 $16) 100... Nh5 $1 $11 {[%emt 0:00:27]} 101. Ke6+ {[%emt 0:00:12]} Kh6 {[%emt 0:00:07]} 102. Ra3 {[%emt 0:00:45]} Kg5 {[%emt 0:00:05]} 103. Kf7 {[%emt 0:01:04]} Nxg3 {[%emt 0:00:42]} 104. Rxg3 {[%emt 0:00:23]} Kf4 {[%emt 0:00:06]} 105. Rg1 {[%emt 0:00:07]} g3 {[%emt 0:00:03]} 106. Kxg6 {[%emt 0:00:11]} Kf3 {[%emt 0:00:07]} 1/2-1/2

[Event "Aktobe Open 2022"]
[Site "Aktobe"]
[Date "2022.06.18"]
[Round "6.4"]
[White "Dauletova, Gulmira"]
[Black "Vakhidov, Jakhongir"]
[Result "0-1"]
[ECO "B53"]
[WhiteElo "2220"]
[BlackElo "2552"]
[Annotator "TA"]
[PlyCount "88"]
[EventDate "2022.06.14"]
[EventType "swiss"]
[EventCountry "KAZ"]
[SourceTitle "playchess.com"]
[Source "ChessBase"]
[SourceQuality "1"]
[TimeControl "5400+30"]

{[%evp 9,88,-9,-9,-13,8,-8,-7,-20,-14,-15,8,0,19,17,17,7,9,7,0,-6,14,5,15,-7,0,-86,-90,-99,-33,-124,-125,-116,-113,-120,-103,-139,-139,-139,-139,-138,-139,-140,-135,-229,-221,-245,-245,-410,-247,-462,-460,-557,-578,-564,-579,-579,-572,-678,-656,-637,-575,-746,-746,-908,-890,-855,-860,-924,-922,-860,-818,-832,-847,-1014,-929,-3077,-2727,-5821,-5831,-2245,-1371]} 1. e4 {[%emt 0:00:08]} c5 {[%emt 0:00:09]} 2. Nf3 {[%emt 0:00:15]} d6 {[%emt 0:00:12]} 3. d4 {[%emt 0:00:40]} cxd4 {[%emt 0:00:09]} 4. Qxd4 {[%emt 0:00:20]} Nf6 {[%emt 0:00:11]} 5. c4 {[%emt 0:00:50]} Nc6 {[%emt 0:00:23]} 6. Qe3 {[%emt 0:00:29] B53: Sicilian: 2...d6: Lines with Qxd4.} Bg4 {[%emt 0:00:50]} 7. Be2 {[%emt 0:02:21]} g6 {[%emt 0:00:10]} 8. O-O {[%emt 0:00:45] The position is equal.} Bg7 {[%emt 0:00:26]} 9. Nc3 {[%emt 0:02:50]} O-O {[%emt 0:01:26]} 10. Rd1 {[%emt 0:01:16]} Qb6 {[%emt 0:01:39]} 11. Rb1 {[%emt 0:13:03]} Rfc8 {[%emt 0:35:43]} 12. b3 {[%emt 0:06:04]} Nd7 {[%emt 0:01:55] [#] And now ...Qxe3 would win.} 13. Nd5 $146 {[%emt 0:14:51]} ({Predecessor:} 13. Qd2 Qa5 14. Bb2 a6 15. a3 Bxf3 16. Bxf3 Nd4 17. Nd5 Nxf3+ 18. gxf3 Qd8 19. Qg5 Bxb2 20. Rxb2 {½-½ (30) Shankland,S (2671)-Xiong,J (2665) Saint Louis 2018}) 13... Qxe3 {[%emt 0:01:42]} 14. Nxe3 {[%emt 0:00:39]} Bxf3 {[%emt 0:07:00]} 15. Bxf3 {[%emt 0:01:46]} Nc5 {[%emt 0:00:10]} 16. Bg4 {[%emt 0:13:17]} e6 {[%emt 0:04:55]} 17. f3 {[%emt 0:11:26]} (17. Bf3 $11 {remains equal.}) 17... Nb4 {[%emt 0:06:41]} 18. Rd2 {[%emt 0:13:56]} Nbd3 {[%emt 0:14:15] Prevents Bb2.} (18... h5 $17 {Threatens to win with ...Bh6.} 19. Bh3 Bh6) 19. Re2 {[%emt 0:03:33] White is now going downhill.} (19. Ba3 $15) 19... h5 $17 {[%emt 0:07:24]} 20. Bh3 {[%emt 0:00:03]} Nf4 $36 {[%emt 0:00:15][%mdl 2048] White is under strong pressure. Pair of Knights!} 21. Rc2 {[%emt 0:02:55]} Ncd3 {[%emt 0:03:09][%cal Od6d5]} 22. Kf1 {[%emt 0:00:21]} a5 {[%emt 0:03:17]} (22... Bd4 23. Nd5 exd5 24. Bxf4 Nxf4 25. Bxc8 Rxc8 26. Rd1 $15) 23. a4 {[%emt 0:03:12]} Nxc1 {[%emt 0:06:17] 0x0.000bd5decb01dp-1022s more active pieces.} (23... Bd4 24. Nd5 exd5 25. Bxc8 Rxc8 26. g3 $15) 24. Rbxc1 {[%emt 0:00:26][%cal Oe3d5]} Rc6 {[%emt 0:00:20]} (24... Bd4 25. Nd5 exd5 26. Bxc8 Rxc8 27. Rd1 $15) 25. Rd2 {[%emt 0:04:07] Inhibits Bd4.} Raa6 {[%emt 0:01:24]} 26. c5 {[%emt 0:01:30] Against Rab6} (26. Rdd1 $17) 26... Bh6 $19 {[%emt 0:00:40][%cal Bg7h6,Bh6d2,Bd2g5,Bg5f4,Bf4e5][%mdl 32]} ({Worse is} 26... dxc5 27. Rd8+ Kh7 28. Rd7 $15) (26... Rxc5 27. Rxc5 dxc5 28. Rd8+ Kh7 29. Nc4 $17) 27. Kf2 {[%emt 0:01:21]} Kg7 {[%emt 0:01:08]} ({Inferior is} 27... Rxc5 28. Rxc5 Nxh3+ 29. gxh3 $17) ({Don't go for} 27... dxc5 $2 28. Rdd1) 28. e5 $2 {[%emt 0:01:30]} (28. Rdd1) 28... dxc5 {[%emt 0:01:52][%cal Of4d5] aiming for ...Nd5!} 29. Rc3 $2 {[%emt 0:00:33]} (29. Rd8 {was called for.}) 29... Nd5 {[%emt 0:00:16] Black is clearly winning.} 30. Nxd5 {[%emt 0:00:26]} Bxd2 {[%emt 0:00:05]} 31. Rd3 {[%emt 0:00:01]} Bg5 {[%emt 0:00:57]} 32. Nc3 {[%emt 0:00:19]} Bf4 {[%emt 0:00:09]} 33. Rd7 {[%emt 0:00:33]} Bxe5 {[%emt 0:00:05]} 34. Ne4 {[%emt 0:00:05]} Rc7 {[%emt 0:00:15]} 35. Rd2 {[%emt 0:01:36]} Rb6 {[%emt 0:00:09]} 36. Rd3 {[%emt 0:00:20]} c4 {[%emt 0:00:12]} 37. bxc4 {[%emt 0:00:01]} Rxc4 {[%emt 0:00:08]} 38. g3 {[%emt 0:00:26]} Rxa4 {[%emt 0:01:42] White must now prevent ...Rb2+.} 39. Ke3 {[%emt 0:00:31]} Rc6 {[%emt 0:01:00]} 40. f4 {[%emt 0:00:17]} Bc7 {[%emt 0:00:07]} 41. Ng5 {[%emt 0:00:17]} Bb6+ {[%emt 0:00:12]} 42. Kf3 {[%emt 0:00:16]} Rc2 {[%emt 0:00:24][%csl Gb6][%cal Rc2f2]} 43. Ne4 {[%emt 0:01:27] Inhibits Rf2+.} Rxh2 {[%emt 0:00:10] ( -> ...f5)} 44. Bg2 {[%emt 0:00:49] [#]} Rxg2 $1 {[%emt 0:01:01] Weighted Error Value: White=0.48/Black=0.12 (very precise)} 0-1

[Event "Aktobe Open 2022"]
[Site "Aktobe"]
[Date "2022.06.18"]
[Round "6.5"]
[White "Rychagov, Andrey"]
[Black "Sadubayev, Airat"]
[Result "1-0"]
[ECO "D66"]
[WhiteElo "2549"]
[BlackElo "2317"]
[Annotator "TA"]
[PlyCount "55"]
[EventDate "2022.06.14"]
[EventType "swiss"]
[EventCountry "KAZ"]
[SourceTitle "playchess.com"]
[Source "ChessBase"]
[SourceQuality "1"]
[TimeControl "5400+30"]

{[%evp 23,55,10,29,31,18,8,10,0,13,0,0,0,0,-31,98,104,103,76,153,126,285,245,327,305,331,287,591,598,601,536,679,672,645,544]} 1. d4 {[%emt 0:00:03]} d5 {[%emt 0:00:13]} 2. c4 {[%emt 0:00:12]} e6 {[%emt 0:00:18]} 3. Nf3 {[%emt 0:00:21]} Nf6 {[%emt 0:00:17]} 4. Bg5 {[%emt 0:01:32]} c6 {[%emt 0:02:01]} 5. e3 {[%emt 0:02:56]} Nbd7 {[%emt 0:06:40]} 6. Nc3 {[%emt 0:05:14]} Be7 {[%emt 0:00:34]} 7. Bd3 {[%emt 0:04:40]} h6 {[%emt 0:06:50]} 8. Bh4 {[%emt 0:03:04]} dxc4 {[%emt 0:08:03]} 9. Bxc4 {[%emt 0:00:07]} b5 {[%emt 0:00:11]} 10. Bd3 {[%emt 0:06:22]} Bb7 {[%emt 0:00:33]} 11. O-O {[%emt 0:07:31]} O-O {[%emt 0:09:52]} 12. Rc1 {[%emt 0:02:54]} Rc8 {[%emt 0:05:25]} 13. Qe2 {[%emt 0:20:02] D66: Queen's Gambit Declined: Classical: Main Line (7 Rc1 c6 8 Bd3).} b4 {[%emt 0:09:41]} 14. Bxf6 {[%emt 0:03:49]} gxf6 {[%emt 0:06:45]} 15. Na4 {[%emt 0:02:35] The position is equal.} Qa5 $1 {[%emt 0:01:40] [#] Inhibits Ba6.} 16. b3 $146 {[%emt 0:03:04]} ({Predecessor:} 16. Nc5 Bxc5 17. dxc5 Nxc5 18. Bb1 Rfd8 19. Nd4 Na4 20. Rfd1 Kf8 21. Be4 Ba8 22. Bxc6 Bxc6 23. Nxc6 Rxd1+ 24. Qxd1 Qb5 {½-½ (24) Dixon,D (2366)-Doppelhammer,H (2373) ICCF email 2021}) 16... c5 {[%emt 0:03:32]} 17. Bb5 {[%emt 0:00:48]} Rfd8 {[%emt 0:08:02]} 18. e4 {[%emt 0:08:47][%cal Od4d5]} a6 {[%emt 0:07:14]} (18... cxd4 $15 {stays ahead.} 19. Rxc8 Bxc8) 19. Bxd7 $16 {[%emt 0:01:46] White is more active.} Rxd7 {[%emt 0:00:06] [#]} 20. d5 {[%emt 0:00:57] Hoping for Nd2.} exd5 {[%emt 0:05:28]} (20... Kh7 $142) 21. Ne5 {[%emt 0:02:16]} Rdd8 $2 {[%emt 0:05:20] Loses the game.} (21... fxe5 $16 22. Qg4+ Bg5) 22. Qg4+ {[%emt 0:00:59]} Kh7 {[%emt 0:02:53]} 23. Nxf7 {[%emt 0:00:39] Pair of Knights!} Rg8 {[%emt 0:01:21]} 24. Qf5+ {[%emt 0:04:53]} Kg7 $2 {[%emt 0:00:06] [#]} (24... Rg6 25. exd5 Kg7) 25. Qh5 $18 {[%emt 0:01:10] White is clearly winning.} Qc7 {[%emt 0:08:17]} 26. Nxh6 {[%emt 0:00:36]} Qf4 {[%emt 0:00:10]} 27. Nxg8 {[%emt 0:01:05]} Rxg8 {[%emt 0:00:31]} 28. g3 {[%emt 0:01:17] Weighted Error Value: White=0.17 (very precise) /Black=0.72} 1-0